bitfinex/quotes_BTCUSD_20260215
["timestamp","ask_amount","ask_price","bid_price","bid_amount"]
[1771197659536,0.0243687,68554.0,68541.0,0.0002]
[1771197659784,0.21507108,68553.0,68541.0,0.0002]
[1771197660767,0.00030797,68558.0,68541.0,0.0002]
[1771197660768,0.00030797,68558.0,68544.0,0.20282476]
[1771197660992,0.00030797,68558.0,68541.0,0.0002]
[1771197660993,0.00030797,68558.0,68547.0,0.02370549]
[1771197661325,0.00030797,68558.0,68542.0,0.02370549]
[1771197661509,0.02467667,68558.0,68543.0,0.02391149]
[1771197661928,0.02467667,68558.0,68543.0,0.000206]
[1771197661929,0.0243687,68556.0,68543.0,0.000206]
[1771197662259,0.0243687,68554.0,68543.0,0.000206]
[1771197662466,0.0243687,68552.0,68543.0,0.000206]
[1771197663862,0.23943978,68550.0,68543.0,0.000206]
[1771197664296,0.23943978,68550.0,68543.0,0.000406]
[1771197665316,0.21507108,68548.0,68536.0,0.0002]
[1771197665603,0.00030797,68558.0,68530.0,0.2831526]
[1771197665604,0.0243687,68543.0,68530.0,0.0004326]
[1771197665817,0.0243687,68541.0,68530.0,0.0004326]
[1771197666041,0.09344,68550.0,68530.0,0.0004326]
[1771197666042,0.0243687,68539.0,68530.0,0.0004326]
[1771197666217,0.0243687,68538.0,68530.0,0.0004326]
[1771197666627,0.0243687,68548.0,68530.0,0.0004326]
[1771197666825,0.0243687,68546.0,68530.0,0.0004326]
[1771197667050,0.23943978,68545.0,68530.0,0.0004326]
[1771197667685,0.21507108,68545.0,68530.0,0.0004326]
[1771197667919,0.0243687,68544.0,68530.0,0.0004326]
[1771197668297,0.23943978,68544.0,68530.0,0.0004326]
[1771197668511,0.0243687,68543.0,68530.0,0.0004326]
[1771197670602,0.21507108,68543.0,68530.0,0.0004326]
[1771197670807,0.0243687,68542.0,68530.0,0.0004326]
[1771197671439,0.09344,68550.0,68530.0,0.0004326]
[1771197671440,0.0243687,68538.0,68530.0,0.0004326]
[1771197671789,0.0243687,68537.0,68530.0,0.0004326]
[1771197671996,0.21507108,68537.0,68530.0,0.0004326]
[1771197672285,0.21507108,68534.0,68530.0,0.0004326]
[1771197672479,0.0243687,68533.0,68530.0,0.0004326]
[1771197672894,0.0243687,68537.0,68530.0,0.0004326]
[1771197673108,0.0243687,68537.0,68530.0,0.00086129]
[1771197674788,0.23347951,68537.0,68530.0,0.00086129]
[1771197675395,0.02306259,68536.0,68524.0,0.0002]
[1771197675594,0.20911081,68533.0,68524.0,0.0002]
[1771197675918,0.02306259,68532.0,68524.0,0.0002]
[1771197676867,0.00042869,68536.0,68520.0,0.0002]
[1771197676868,0.02306259,68530.0,68520.0,0.0002]
[1771197677067,0.2321734,68530.0,68520.0,0.0002]
[1771197677726,0.20911081,68530.0,68520.0,0.0002]
[1771197677930,0.02306259,68529.0,68520.0,0.0002]
[1771197679376,0.20911081,68529.0,68524.0,0.0002]
[1771197679512,0.02306259,68528.0,68524.0,0.0002]
[1771197679728,0.02306259,68527.0,68524.0,0.0002]
[1771197682563,0.2321734,68531.0,68524.0,0.0002]
[1771197682728,0.20911081,68531.0,68524.0,0.0002]
[1771197682929,0.20911081,68530.0,68520.0,0.0002]
[1771197683129,0.57496298,68534.0,68520.0,0.0002]
[1771197683130,0.02306259,68528.0,68520.0,0.0002]
[1771197683551,0.02306259,68526.0,68517.0,0.0004326]
[1771197684095,0.02306259,68526.0,68510.0,0.02430675]
[1771197684096,0.20911081,68525.0,68510.0,0.0002]
[1771197684470,0.2321734,68518.0,68510.0,0.0002]
[1771197684902,0.2321734,68518.0,68493.0,0.47222077]
[1771197684903,0.02306259,68517.0,68489.0,0.02410675]
[1771197685128,0.51188182,68501.0,68489.0,0.02410675]
[1771197685555,0.53494441,68501.0,68489.0,0.02410675]
[1771197685928,0.02306259,68501.0,68489.0,0.02410675]
[1771197686308,0.02306259,68501.0,68491.0,0.00036114]
[1771197686926,0.02306259,68501.0,68491.0,0.00044614]
[1771197687344,0.59932225,68501.0,68491.0,0.00044614]
[1771197687567,0.02306259,68498.0,68491.0,0.00044614]
[1771197687781,0.02306259,68506.0,68491.0,0.00044614]
[1771197687995,0.3328,68503.0,68491.0,0.00044614]
[1771197688432,0.35586259,68503.0,68491.0,0.00044614]
[1771197688636,0.3328,68503.0,68491.0,0.00044614]
[1771197688801,0.02306259,68502.0,68491.0,0.00044614]
[1771197691506,0.54191081,68503.0,68491.0,0.00044614]
[1771197691507,0.20911081,68500.0,68491.0,0.00044614]
[1771197691715,0.02306259,68499.0,68491.0,0.00044614]
[1771197692898,0.20911081,68499.0,68491.0,0.0002]
[1771197693124,0.02306259,68498.0,68491.0,0.0002]
[1771197694043,0.3328,68503.0,68491.0,0.0002]
[1771197694252,0.35586259,68503.0,68491.0,0.0002]
[1771197694898,0.20911081,68518.0,68492.0,0.20124337]
[1771197695137,0.01120575,68537.0,68491.0,0.0002]
[1771197695138,0.23724,68517.0,68497.0,0.20124337]
[1771197695329,0.23724,68517.0,68491.0,0.0002]
[1771197695330,0.14376,68517.0,68501.0,0.20124337]
[1771197695532,0.14376,68517.0,68504.0,0.02410675]
[1771197695533,0.31488,68516.0,68504.0,0.02410675]
[1771197695799,0.31488,68516.0,68507.0,0.20124337]
[1771197695955,0.31488,68516.0,68508.0,0.02410675]
[1771197696365,0.14376,68517.0,68508.0,0.02410675]
[1771197696543,0.16232,68519.0,68511.0,0.02410675]
[1771197696759,0.33416,68519.0,68511.0,0.02410675]
[1771197698628,0.33416,68518.0,68492.0,0.02410675]
[1771197698830,0.54327081,68518.0,68496.0,0.02410675]
[1771197699021,0.54327081,68518.0,68495.0,0.20124337]
[1771197699022,0.54327081,68518.0,68499.0,0.20124337]
[1771197699222,0.54327081,68518.0,68500.0,0.20124337]
[1771197699442,0.33416,68518.0,68491.0,0.0002]
[1771197699653,0.57625966,68510.0,68492.0,0.02410675]
[1771197699867,0.33424,68509.0,68503.0,0.0002]
[1771197701075,0.33432,68508.0,68504.0,0.02410675]
[1771197701278,0.33432,68512.0,68504.0,0.02410675]
[1771197701733,0.33436,68515.0,68504.0,0.02410675]
[1771197702137,0.33436,68515.0,68503.0,0.0002]
[1771197702375,0.20911081,68514.0,68503.0,0.0002]
[1771197703436,0.23395601,68514.0,68503.0,0.0002]
[1771197705923,0.33436,68515.0,68504.0,0.02310793]
[1771197706550,0.24287705,68526.0,68505.0,0.20717317]
[1771197706774,0.55300996,68525.0,68506.0,0.02310793]
[1771197706950,0.21796996,68524.0,68506.0,0.02310793]
[1771197707492,0.02490709,68523.0,68506.0,0.02310793]
[1771197707665,0.33508,68522.0,68506.0,0.02310793]
[1771197707872,0.02490709,68514.0,68503.0,0.0002]
[1771197708037,0.57615223,68516.0,68496.0,0.0002]
[1771197708038,0.02490709,68510.0,68496.0,0.0002]
[1771197708252,0.33508,68513.0,68497.0,0.02310793]
[1771197708832,0.21796996,68512.0,68497.0,0.02310793]
[1771197709211,0.33508,68513.0,68496.0,0.0002]
[1771197709212,0.21796996,68508.0,68496.0,0.0002]
[1771197710068,0.21796996,68506.0,68496.0,0.0002]
[1771197710268,0.24287705,68506.0,68496.0,0.0002]
[1771197710474,0.33508,68513.0,68496.0,0.0002]
[1771197710680,0.21796996,68511.0,68496.0,0.02330793]
[1771197710849,0.24287705,68511.0,68496.0,0.02330793]
[1771197711054,0.21796996,68508.0,68496.0,0.0002]
[1771197711362,0.21796996,68504.0,68496.0,0.0002]
[1771197711505,0.24287705,68504.0,68496.0,0.0002]
[1771197712140,0.21796996,68504.0,68496.0,0.0002]
[1771197714700,0.21796996,68504.0,68491.0,0.0002]
[1771197714701,0.24287705,68502.0,68491.0,0.0002]
[1771197714843,0.79412219,68501.0,68491.0,0.0002]
[1771197715051,0.57615223,68501.0,68491.0,0.0002]
[1771197715261,0.3356,68503.0,68491.0,0.0002]
[1771197715490,0.3356,68503.0,68491.0,0.02330793]
[1771197716369,0.3,68501.0,68491.0,0.02330793]
[1771197718081,0.33628,68500.0,68491.0,0.02330793]
[1771197720853,0.33628,68500.0,68491.0,0.0002]
[1771197721502,0.21796996,68499.0,68491.0,0.0002]
[1771197721724,0.33628,68500.0,68484.0,0.0002]
[1771197721725,0.57615223,68497.0,68484.0,0.0002]
[1771197721943,0.24287705,68493.0,68484.0,0.00032878]
[1771197722160,0.21796996,68491.0,68484.0,0.00032878]
[1771197722393,0.33708,68490.0,68484.0,0.00032878]
[1771197722611,0.02490709,68492.0,68484.0,0.00032878]
[1771197722612,0.3372,68489.0,68484.0,0.00032878]
[1771197722845,0.14376,68498.0,68484.0,0.00032878]
[1771197722846,0.33728,68491.0,68485.0,0.02310793]
[1771197724178,0.21796996,68490.0,68484.0,0.00032878]
[1771197724819,0.33728,68491.0,68484.0,0.00032878]
[1771197726154,0.14376,68498.0,68484.0,0.00032878]
[1771197726358,0.33816,68497.0,68485.0,0.02310793]
[1771197726962,0.33832,68496.0,68485.0,0.02310793]
[1771197729164,0.14376,68498.0,68485.0,0.02310793]
[1771197729370,0.33896,68497.0,68485.0,0.02310793]
[1771197730242,0.0004,68496.0,68485.0,0.02310793]
[1771197732112,0.21836996,68496.0,68485.0,0.02310793]
[1771197733040,0.0004,68496.0,68485.0,0.02310793]
[1771197733258,0.21836996,68496.0,68485.0,0.02310793]
[1771197736695,0.341,68495.0,68485.0,0.02310793]
[1771197738309,0.3414,68494.0,68485.0,0.02310793]
[1771197738543,0.0004,68496.0,68487.0,0.02397581]
[1771197738748,0.64148,68501.0,68488.0,0.02397581]
[1771197738949,0.64148,68501.0,68489.0,0.02397581]
[1771197739125,0.64148,68501.0,68489.0,0.21457547]
[1771197739319,0.64148,68501.0,68490.0,0.02397581]
[1771197739619,0.64148,68501.0,68491.0,0.02397581]
[1771197740484,0.20204348,68508.0,68491.0,0.02397581]
[1771197740485,0.0004,68510.0,68491.0,0.21457547]
[1771197740707,0.34204,68517.0,68493.0,0.21457547]
[1771197740913,0.34204,68517.0,68496.0,0.02397581]
[1771197741124,0.34204,68517.0,68499.0,0.21457547]
[1771197741355,0.34204,68517.0,68495.0,0.21457547]
[1771197741356,0.34157015,68517.0,68495.0,0.21457547]
[1771197741567,0.34157015,68517.0,68498.0,0.02397581]
[1771197741796,0.57615223,68510.0,68500.0,0.02397581]
[1771197742000,0.20164348,68505.0,68484.0,0.00032878]
[1771197742212,0.57615223,68494.0,68484.0,0.00032878]
[1771197742420,0.20164348,68490.0,68477.0,0.02417581]
[1771197743392,0.20164348,68509.0,68477.0,0.02417581]
[1771197743593,0.20164348,68498.0,68478.0,0.02397581]
[1771197743955,0.30676,68497.0,68479.0,0.21457547]
[1771197744158,0.30676,68497.0,68480.0,0.02397581]
[1771197744641,0.20164348,68496.0,68480.0,0.02397581]
[1771197744854,0.20164348,68494.0,68480.0,0.02397581]
[1771197745394,0.30676,68497.0,68477.0,0.0002]
[1771197745395,0.2265346,68489.0,68477.0,0.0002]
[1771197745609,0.20164348,68487.0,68477.0,0.0002]
[1771197746773,0.20164348,68485.0,68477.0,0.0002]
[1771197747173,0.2014632,68485.0,68479.0,0.0002]
[1771197747379,0.201145,68485.0,68479.0,0.0002]
[1771197748187,0.02489112,68484.0,68479.0,0.0002]
[1771197748390,0.20164348,68483.0,68472.0,0.0002]
[1771197751139,0.20132523,68483.0,68472.0,0.0002]
[1771197751476,0.20180259,68482.0,68472.0,0.0002]
[1771197751835,0.02489112,68481.0,68472.0,0.0002]
[1771197752034,0.20148442,68479.0,68472.0,0.0002]
[1771197752223,0.17772458,68479.0,68472.0,0.0002]
[1771197752426,0.1775655,68479.0,68472.0,0.0002]
[1771197753189,0.1774064,68479.0,68472.0,0.0002]
[1771197754424,0.00015911,68478.0,68472.0,0.0002]
[1771197759021,0.20180259,68478.0,68472.0,0.0002]
[1771197759647,0.00015911,68478.0,68472.0,0.0002]
[1771197759821,0.3426,68480.0,68472.0,0.0002]
[1771197760426,0.54424348,68480.0,68472.0,0.0002]
[1771197764088,0.09352,68487.0,68473.0,0.02449645]
[1771197764089,0.34324,68487.0,68473.0,0.02449645]
[1771197764519,0.19574066,68486.0,68473.0,0.02449645]
[1771197764722,0.34324,68487.0,68473.0,0.02449645]
[1771197764928,0.34332,68488.0,68475.0,0.19624581]
[1771197765060,0.34348852,68488.0,68476.0,0.02383985]
[1771197765258,0.34348852,68488.0,68472.0,0.0002]
[1771197765259,0.00012852,68488.0,68477.0,0.19624581]
[1771197765445,0.00012852,68488.0,68472.0,0.0002]
[1771197765446,0.12892,68495.0,68480.0,0.02383985]
[1771197765656,0.0004,68498.0,68483.0,0.19624581]
[1771197765852,0.31528,68495.0,68484.0,0.02383985]
[1771197770175,0.0004,68495.0,68484.0,0.02383985]
[1771197771205,0.0004,68498.0,68486.0,0.02383985]
[1771197771380,0.0004,68498.0,68488.0,0.02383985]
[1771197773525,0.3438,68498.0,68488.0,0.02383985]
[1771197773847,0.0004,68498.0,68488.0,0.02383985]
[1771197774090,0.34376,68498.0,68488.0,0.02383985]
[1771197774531,0.0004,68498.0,68488.0,0.02383985]
[1771197775162,0.34384,68498.0,68488.0,0.02383985]
[1771197775412,0.0004,68498.0,68488.0,0.02383985]
[1771197776086,0.0004,68498.0,68489.0,0.02383985]
[1771197782828,0.0004,68498.0,68484.0,0.0002]
[1771197782829,0.21182391,68497.0,68484.0,0.0002]
[1771197783036,0.21182391,68491.0,68480.0,0.00012852]
[1771197783236,0.21182391,68489.0,68480.0,0.00012852]
[1771197784638,0.51224691,68490.0,68477.0,0.0002]
[1771197784639,0.02499368,68488.0,68477.0,0.0002]
[1771197784832,0.23681759,68485.0,68477.0,0.0002]
[1771197785051,0.21182391,68483.0,68477.0,0.0002]
[1771197785424,0.23681759,68483.0,68470.0,0.0002]
[1771197785906,0.02499368,68480.0,68470.0,0.0002]
[1771197786149,0.23681759,68480.0,68470.0,0.0002]
[1771197787450,0.23681759,68480.0,68467.0,0.02405485]
[1771197787451,0.21182391,68476.0,68467.0,0.000215]
[1771197787752,0.51224691,68477.0,68467.0,0.000215]
[1771197787753,0.21182391,68474.0,68467.0,0.000215]
[1771197788259,0.23681759,68474.0,68472.0,0.0002]
[1771197788906,0.51224691,68482.0,68472.0,0.0002]
[1771197789112,0.3456,68481.0,68472.0,0.0002]
[1771197789314,0.0004,68495.0,68472.0,0.0002]
[1771197789315,0.09352,68491.0,68473.0,0.02383985]
[1771197789504,0.34568,68490.0,68476.0,0.19624581]
[1771197789811,0.34568,68490.0,68477.0,0.02383985]
[1771197790375,0.34568,68490.0,68480.0,0.51224691]
[1771197790535,0.09364869,68491.0,68481.0,0.02383985]
[1771197791347,0.6058956,68491.0,68472.0,0.0002]
[1771197791574,0.21182391,68490.0,68472.0,0.0002]
[1771197791768,0.23681759,68489.0,68473.0,0.02383985]
[1771197791983,0.34568,68488.0,68473.0,0.02383985]
[1771197793193,0.34568,68488.0,68473.0,0.19624581]
[1771197793559,0.54223115,68489.0,68480.0,0.02375697]
[1771197793752,0.54223115,68489.0,68472.0,0.0002]
[1771197793753,0.02375345,68487.0,68472.0,0.0002]
[1771197793927,0.19639115,68486.0,68472.0,0.02395697]
[1771197794328,0.19639115,68481.0,68472.0,0.0002]
[1771197794564,0.34596,68481.0,68472.0,0.0002]
[1771197794741,0.73239151,68482.0,68472.0,0.0002]
[1771197794936,0.34604,68481.0,68472.0,0.0002]
[1771197795344,0.34612,68480.0,68472.0,0.0002]
[1771197797298,0.0004,68488.0,68472.0,0.0002]
[1771197797299,0.0004,68488.0,68474.0,0.02375697]
[1771197797520,0.19639115,68507.0,68487.0,0.19095506]
[1771197797717,0.19639115,68507.0,68480.0,0.51224691]
[1771197797718,0.51224691,68500.0,68488.0,0.02375697]
[1771197797873,0.51224691,68500.0,68488.0,0.00012869]
[1771197797874,0.19639115,68497.0,68488.0,0.00012869]
[1771197798263,0.19639115,68497.0,68472.0,0.0002]
[1771197798264,0.2201446,68496.0,68472.0,0.0002]
[1771197798463,0.19639115,68493.0,68473.0,0.02375697]
[1771197798923,0.00012869,68496.0,68473.0,0.02375697]
[1771197798924,0.19639115,68489.0,68473.0,0.02375697]
[1771197799153,0.19639115,68487.0,68473.0,0.02375697]
[1771197799497,0.51224691,68483.0,68473.0,0.02375697]
[1771197799699,0.34656,68488.0,68473.0,0.02375697]
[1771197799700,0.19639115,68487.0,68473.0,0.02375697]
[1771197799901,0.19639115,68486.0,68473.0,0.02375697]
[1771197800103,0.34656,68488.0,68465.0,0.19115506]
[1771197800104,0.02375345,68481.0,68467.0,0.000215]
[1771197800304,0.2201446,68475.0,68467.0,0.000215]
[1771197800649,0.25663426,68489.0,68448.0,0.34204712]
[1771197800650,0.19639115,68487.0,68456.0,0.02395317]
[1771197800879,0.19639115,68480.0,68464.0,0.02375697]
[1771197801461,0.19639115,68480.0,68464.0,0.02388573]
[1771197801624,0.19639115,68478.0,68464.0,0.00012876]
[1771197801824,0.2201446,68478.0,68464.0,0.00012876]
[1771197802939,0.17998544,68478.0,68464.0,0.00012876]
[1771197803329,0.25663426,68489.0,68464.0,0.00012876]
[1771197803545,0.0001962,68494.0,68479.0,0.51224691]
[1771197803788,0.3466,68504.0,68479.0,0.51224691]
[1771197803789,0.3466,68504.0,68484.0,0.51224691]
[1771197803790,0.19679115,68502.0,68484.0,0.51224691]
[1771197803991,0.19679115,68502.0,68488.0,0.51224691]
[1771197804393,0.19679115,68502.0,68485.0,0.02375697]
[1771197804625,0.19679115,68502.0,68479.0,0.78120691]
[1771197804626,0.02375345,68496.0,68479.0,0.26896]
[1771197804801,0.0004,68490.0,68480.0,0.51224691]
[1771197804998,9.15e-05,68490.0,68479.0,0.26896]
[1771197805202,9.15e-05,68490.0,68480.0,0.51224691]
[1771197805407,0.0004,68502.0,68484.0,0.53600388]
[1771197805408,0.0004,68497.0,68484.0,0.53600388]
[1771197805584,0.00052869,68497.0,68484.0,0.02375697]
[1771197805787,8.787e-05,68497.0,68487.0,0.51224691]
[1771197805988,0.02415345,68502.0,68491.0,0.02375697]
[1771197805989,0.0004,68502.0,68491.0,0.02375697]
[1771197806194,0.0004,68502.0,68492.0,0.02375697]
[1771197807482,0.0004,68502.0,68492.0,0.02475697]
[1771197808044,0.0004,68502.0,68492.0,0.02375697]
[1771197808276,0.0004,68502.0,68492.0,0.02475697]
[1771197809498,0.0004,68502.0,68491.0,0.26932]
[1771197809499,0.19679115,68501.0,68491.0,0.26932]
[1771197809845,0.19639115,68499.0,68486.0,0.26968]
[1771197810051,0.2201446,68498.0,68486.0,0.26980869]
[1771197810973,0.0004,68501.0,68486.0,0.26980869]
[1771197810974,0.02375345,68497.0,68486.0,0.00012869]
[1771197811283,0.2201446,68493.0,68486.0,0.00012869]
[1771197811510,0.2205446,68501.0,68486.0,0.00012869]
[1771197811709,0.02415345,68501.0,68486.0,0.00012869]
[1771197812079,0.0004,68501.0,68486.0,0.00012869]
[1771197812275,0.0004,68501.0,68487.0,0.02375697]
[1771197812735,0.0004,68501.0,68486.0,0.00012869]
[1771197812736,0.19639115,68500.0,68486.0,0.00012869]
[1771197812934,0.02375345,68497.0,68486.0,0.00012869]
[1771197813111,0.2201446,68496.0,68486.0,0.00012869]
[1771197814394,0.0004,68501.0,68486.0,0.00012869]
[1771197814591,0.02415345,68501.0,68486.0,0.00012869]
[1771197815134,0.2205446,68501.0,68486.0,0.00012869]
[1771197816399,0.02375345,68500.0,68486.0,0.00012869]
[1771197816732,0.2201446,68500.0,68486.0,0.00012869]
[1771197817136,0.02375345,68500.0,68486.0,0.00012869]
[1771197817349,0.0004,68501.0,68487.0,0.02375697]
[1771197817976,0.0004,68501.0,68487.0,0.19095506]
[1771197818178,0.10739882,68500.0,68489.0,0.02375697]
[1771197820005,0.10739882,68500.0,68490.0,0.19095506]
[1771197820208,0.0004,68501.0,68493.0,0.19095506]
[1771197820379,0.0004,68505.0,68495.0,0.19095506]
[1771197820595,0.0004,68509.0,68497.0,0.02375697]
[1771197820807,0.0004,68512.0,68502.0,0.02375697]
[1771197821011,0.19639115,68511.0,68494.0,0.02375697]
[1771197821442,0.02375345,68510.0,68494.0,0.02375697]
[1771197821645,0.19639115,68507.0,68487.0,0.02375697]
[1771197821810,0.02375345,68504.0,68493.0,0.26992]
[1771197822012,0.0004,68512.0,68487.0,0.02375697]
[1771197822013,0.2201446,68503.0,68487.0,0.02375697]
[1771197822215,0.02375345,68502.0,68493.0,0.001]
[1771197822395,0.2201446,68502.0,68493.0,0.001]
[1771197822750,0.2201446,68502.0,68492.0,0.26992]
[1771197822751,0.02375345,68502.0,68492.0,0.26992]
[1771197822955,0.0004,68512.0,68493.0,0.02375697]
[1771197823237,0.2205446,68512.0,68493.0,0.02375697]
[1771197823489,0.2205446,68512.0,68493.0,0.02407965]
[1771197823630,0.2205446,68512.0,68494.0,0.20500435]
[1771197823836,0.0004,68512.0,68496.0,0.02407965]
[1771197824260,0.0004,68512.0,68496.0,0.229084]
[1771197824464,0.0004,68512.0,68497.0,0.02407965]
[1771197826802,0.19696372,68508.0,68490.0,0.51201731]
[1771197827060,0.2217834,68505.0,68497.0,0.27008]
[1771197827242,0.51201731,68510.0,68497.0,0.27008]
[1771197827243,0.2217834,68504.0,68497.0,0.27008]
[1771197827448,0.51201731,68510.0,68497.0,0.27008]
[1771197827687,0.2217834,68511.0,68497.0,0.27008]
[1771197828330,0.02481968,68510.0,68497.0,0.27008]
[1771197828486,0.02481968,68509.0,68492.0,0.02274599]
[1771197828712,0.0004,68512.0,68493.0,0.27012]
[1771197828713,0.2217834,68508.0,68493.0,0.27012]
[1771197829098,0.02481968,68508.0,68493.0,0.27012]
[1771197829305,0.19696372,68511.0,68494.0,0.02274599]
[1771197829526,0.19696372,68506.0,68493.0,0.27012]
[1771197829766,0.51201731,68510.0,68493.0,0.27012]
[1771197829767,0.19696372,68502.0,68493.0,0.27012]
[1771197829971,0.2217834,68502.0,68493.0,0.27012]
[1771197830584,0.02481968,68501.0,68493.0,0.27012]
[1771197830790,0.19696372,68498.0,68493.0,0.27012]
[1771197831026,0.02481968,68497.0,68493.0,0.27012]
[1771197831232,0.02481968,68502.0,68493.0,0.27012]
[1771197831445,0.19696372,68501.0,68493.0,0.27012]
[1771197833103,0.0004,68504.0,68493.0,0.27012]
[1771197833104,0.0004,68504.0,68496.0,0.02274599]
[1771197833742,0.0004,68504.0,68493.0,0.27012]
[1771197833743,0.19696372,68503.0,68493.0,0.27012]
[1771197833947,0.19696372,68503.0,68490.0,0.29306599]
[1771197835071,0.0004,68504.0,68491.0,0.02274599]
[1771197835276,0.0004,68504.0,68493.0,0.02274599]
[1771197836040,0.0004,68504.0,68495.0,0.02274599]
[1771197837062,0.0004,68504.0,68496.0,0.2052132]
[1771197837295,0.0004,68504.0,68497.0,0.2052132]
[1771197837496,0.0004,68504.0,68498.0,0.02274599]
[1771197838135,0.0004,68504.0,68498.0,0.2052132]
[1771197838261,0.0004,68504.0,68499.0,0.02274599]
[1771197838466,0.0004,68504.0,68501.0,0.02274599]
[1771197842355,0.0004,68511.0,68501.0,0.02274599]
[1771197842555,0.0004,68511.0,68503.0,0.02274599]
[1771197842904,0.0004,68511.0,68504.0,0.2052132]
[1771197843189,0.0004,68511.0,68505.0,0.02274599]
[1771197845614,0.0004,68511.0,68500.0,0.27092]
[1771197845615,0.0004,68515.0,68502.0,0.2052132]
[1771197845839,0.0004,68515.0,68503.0,0.02274599]
[1771197846059,0.0004,68511.0,68503.0,0.02274599]
[1771197846744,0.0004,68511.0,68505.0,0.02274599]
[1771197848588,0.0004,68511.0,68505.0,0.02374599]
[1771197849493,0.0004,68518.0,68505.0,0.02374599]
[1771197849494,0.0004,68518.0,68507.0,0.57614502]
[1771197849821,1e-08,68522.0,68509.0,0.02274599]
[1771197850713,0.00012872,68522.0,68509.0,0.02274599]
[1771197850913,0.0004,68526.0,68509.0,0.02274599]
[1771197851118,0.0004,68526.0,68509.0,0.0228747]
[1771197851329,0.0004,68526.0,68511.0,0.02274599]
[1771197851470,0.0004,68526.0,68512.0,0.27372]
[1771197851659,0.0004,68526.0,68513.0,0.02274599]
[1771197852954,0.0004,68522.0,68513.0,0.02274599]
[1771197853162,0.0004,68526.0,68516.0,0.02274599]
[1771197853608,0.0004,68526.0,68517.0,0.27412]
[1771197854784,0.19187181,68524.0,68518.0,0.27432]
[1771197854981,0.0004,68525.0,68518.0,0.27432]
[1771197855604,0.0004,68525.0,68518.0,0.2973984]
[1771197856442,1e-08,68527.0,68518.0,0.27432]
[1771197856658,0.01048325,68546.0,68519.0,0.19513312]
[1771197856659,0.20235506,68546.0,68519.0,0.19513312]
[1771197856869,0.20235506,68546.0,68531.0,0.0230784]
[1771197857082,0.20235506,68546.0,68533.0,0.0230784]
[1771197857302,0.20235506,68546.0,68533.0,0.0230384]
[1771197857958,0.01261888,68550.0,68533.0,0.19513312]
[1771197858168,0.01261888,68550.0,68532.0,0.27484]
[1771197858169,0.00012863,68550.0,68541.0,0.19513312]
[1771197858382,0.0004,68557.0,68543.0,0.0230784]
[1771197858599,0.0004,68557.0,68543.0,0.02320703]
[1771197859059,0.0004,68557.0,68545.0,0.0230784]
[1771197859273,0.0004,68557.0,68546.0,0.0230784]
[1771197859624,0.01201912,68554.0,68546.0,0.0230784]
[1771197860025,0.0004,68557.0,68546.0,0.26807608]
[1771197860247,0.0004,68557.0,68548.0,0.0230784]
[1771197860451,0.0004,68557.0,68549.0,0.27544]
[1771197860867,0.0004,68557.0,68550.0,0.0230784]
[1771197861074,0.0004,68555.0,68550.0,0.0230784]
[1771197862816,0.0004,68555.0,68549.0,0.27544]
[1771197866500,0.0004,68555.0,68549.0,0.2766]
[1771197867999,0.0004,68555.0,68538.0,0.07295172]
[1771197868000,0.02475084,68552.0,68542.0,0.27688]
[1771197868346,0.02475084,68548.0,68537.0,0.27688]
[1771197868491,0.02475084,68546.0,68537.0,0.27688]
[1771197869572,0.02475084,68546.0,68535.0,0.27704]
[1771197869788,0.02475084,68546.0,68530.0,0.64928418]
[1771197869789,0.19187181,68543.0,68530.0,0.0001792]
[1771197869985,0.02475084,68540.0,68530.0,0.0001792]
[1771197870315,0.02475084,68539.0,68530.0,0.0001792]
[1771197871111,0.00012856,68552.0,68530.0,0.0001792]
[1771197871112,0.19187181,68546.0,68530.0,0.0001792]
[1771197871322,0.02475084,68546.0,68530.0,0.0001792]
[1771197872475,0.00012856,68552.0,68532.0,0.19513312]
[1771197872675,0.0248794,68552.0,68537.0,0.0230784]
[1771197876618,0.02475084,68550.0,68533.0,0.0002]
[1771197876843,0.19187181,68547.0,68533.0,0.0002]
[1771197877046,0.02475084,68546.0,68533.0,0.0002]
[1771197878780,0.02475084,68545.0,68533.0,0.0002]
[1771197879992,0.02475084,68543.0,68533.0,0.0002]
[1771197880193,0.02475084,68541.0,68533.0,0.0002]
[1771197880425,0.02471084,68541.0,68533.0,0.0002]
[1771197881551,0.02475084,68540.0,68533.0,0.0002]
[1771197885786,0.02463619,68545.0,68533.0,0.0002]
[1771197888556,0.19080017,68550.0,68533.0,0.0002]
[1771197888729,0.21543636,68550.0,68534.0,0.02377054]
[1771197889272,0.19080017,68550.0,68534.0,0.02377054]
[1771197889473,0.02463619,68549.0,68535.0,0.19525991]
[1771197889774,0.02463619,68549.0,68536.0,0.02377054]
[1771197890669,0.00012856,68552.0,68539.0,0.57614502]
[1771197890875,0.00012856,68552.0,68542.0,0.02377054]
[1771197892067,0.00012856,68552.0,68543.0,0.19525991]
[1771197892265,0.00012856,68552.0,68544.0,0.02377054]
[1771197892899,0.00012856,68552.0,68538.0,0.02377054]
[1771197893668,0.02476475,68552.0,68538.0,0.02377054]
[1771197894254,0.19092873,68552.0,68537.0,0.2784]
[1771197894465,0.02463619,68551.0,68537.0,0.2784]
[1771197896652,0.02463619,68549.0,68537.0,0.2784]
[1771197896865,0.02463619,68548.0,68537.0,0.2784]
[1771197897059,0.19080017,68548.0,68537.0,0.2784]
[1771197897288,0.02463619,68547.0,68537.0,0.2784]
[1771197898559,0.02463619,68545.0,68537.0,0.2784]
[1771197898763,0.00268149,68574.0,68540.0,0.02377054]
[1771197899005,0.00268149,68574.0,68561.0,0.02377054]
[1771197899006,1e-08,68571.0,68561.0,0.02377054]
[1771197899219,1e-08,68571.0,68562.0,0.30329054]
[1771197899831,0.00546388,68594.0,68562.0,0.27952]
[1771197900038,0.00546388,68594.0,68570.0,0.57457331]
[1771197900039,0.02463619,68590.0,68570.0,0.57457331]
[1771197900256,0.00012861,68580.0,68571.0,0.28032]
[1771197900460,0.0247648,68580.0,68571.0,0.28032]
[1771197900674,0.02463619,68578.0,68571.0,0.28032]
[1771197901302,0.00012861,68580.0,68571.0,0.28032]
[1771197901670,0.00012861,68580.0,68561.0,0.19525991]
[1771197901671,0.19080017,68578.0,68554.0,0.02377054]
[1771197901878,0.00012861,68580.0,68557.0,0.2804]
[1771197901879,0.19080017,68574.0,68557.0,0.2804]
[1771197902077,0.57470192,68580.0,68557.0,0.2804]
[1771197902078,0.02463619,68571.0,68557.0,0.2804]
[1771197902500,0.02463619,68569.0,68557.0,0.2804]
[1771197902685,0.0004,68565.0,68557.0,0.2804]